bitfinex/quotes_BTCUSD_20220303
["timestamp","ask_amount","ask_price","bid_price","bid_amount"]
[1646282964735,0.24011219,43337.0,43334.0,0.356482]
[1646282964934,0.24011219,43337.0,43335.0,0.0462]
[1646282965135,0.24000001,43337.0,43336.0,0.356482]
[1646282965336,0.24000001,43337.0,43336.0,1.104882]
[1646282965537,0.24000001,43337.0,43336.0,0.402682]
[1646282966536,0.24000001,43337.0,43336.0,1.21251185]
[1646282968014,0.00014919,43339.0,43338.0,1.058682]
[1646282968218,0.00014919,43339.0,43338.0,1.21251185]
[1646282968814,0.001,43346.0,43339.0,1.058682]
[1646282969015,0.001,43346.0,43343.0,0.356482]
[1646282970014,0.001,43346.0,43345.0,0.10762985]
[1646282970216,0.001,43346.0,43345.0,0.46411185]
[1646282970716,0.001,43346.0,43345.0,0.46811185]
[1646282970916,0.001,43346.0,43345.0,0.360482]
[1646282971116,0.001,43346.0,43345.0,0.46811185]
[1646282971315,0.001,43346.0,43345.0,0.360482]
[1646282974052,0.001,43346.0,43345.0,0.356482]
[1646282974458,0.001,43346.0,43335.0,0.1656]
[1646282974656,0.003,43346.0,43340.0,0.003]
[1646282974854,0.02303,43344.0,43340.0,0.003]
[1646282975054,0.00907,43343.0,43340.0,0.003]
[1646282975252,0.00907,43342.0,43340.0,0.003]
[1646282975490,0.00907,43343.0,43340.0,0.003]
[1646282975690,0.26255981,43341.0,43340.0,0.003]
[1646282975890,0.26255981,43341.0,43332.0,0.1873]
[1646282976893,0.26255981,43341.0,43333.0,0.356482]
[1646282977091,0.26255981,43341.0,43335.0,0.17489754]
[1646282977296,0.080761,43344.0,43335.0,0.39420361]
[1646282977493,0.0001493,43339.0,43335.0,0.39420361]
[1646282977694,0.0001493,43339.0,43336.0,0.356482]
[1646282978293,0.001,43346.0,43336.0,0.356482]
[1646282978695,0.000112,43340.0,43336.0,0.356482]
[1646282979247,0.000112,43340.0,43336.0,0.360482]
[1646282979648,0.20687129,43345.0,43336.0,0.360482]
[1646282979853,0.00014921,43340.0,43336.0,0.360482]
[1646282980050,0.00014921,43340.0,43338.0,0.356482]
[1646282980751,0.001,43346.0,43338.0,0.361482]
[1646282980948,0.00014921,43341.0,43338.0,0.361482]
[1646282981949,0.16973537,43344.0,43338.0,0.356482]
[1646282982148,0.00014921,43342.0,43338.0,0.356482]
[1646282983185,0.19276537,43344.0,43338.0,0.356482]
[1646282983389,0.0001493,43342.0,43338.0,0.356482]
[1646282983785,0.0001493,43342.0,43337.0,0.0183732]
[1646282983987,0.0809083,43342.0,43338.0,0.61889037]
[1646282984186,0.00907,43341.0,43339.0,0.01837206]
[1646282984389,0.00907,43341.0,43323.0,0.3218]
[1646282984390,0.0321,43341.0,43323.0,0.3218]
[1646282984586,0.02303,43339.0,43324.0,0.356482]
[1646282984990,0.21800813,43328.0,43323.0,0.3218]
[1646282985190,0.21800813,43328.0,43319.0,0.2499]
[1646282985787,0.21168759,43324.0,43319.0,0.2499]
[1646282985986,0.21168759,43324.0,43320.0,0.356482]
[1646282986387,0.00014931,43326.0,43319.0,0.2499]
[1646282986588,0.00014931,43326.0,43319.0,0.40508744]
[1646282986837,0.29878613,43328.0,43320.0,0.356482]
[1646282987037,0.00014931,43325.0,43319.0,0.2499]
[1646282987235,0.00014931,43325.0,43320.0,0.356482]
[1646282987436,0.22355722,43325.0,43320.0,0.356482]
[1646282987837,0.00014931,43325.0,43320.0,0.356482]
[1646282988040,0.24103813,43328.0,43320.0,0.356482]
[1646282988236,0.00014931,43325.0,43319.0,0.2499]
[1646282988437,0.00014931,43325.0,43320.0,0.356482]
[1646282989138,0.24103813,43328.0,43320.0,0.356482]
[1646282989338,0.00014931,43325.0,43319.0,0.43878122]
[1646282989536,0.00014931,43325.0,43320.0,0.356482]
[1646282990497,0.02303,43330.0,43319.0,0.43878122]
[1646282990696,0.02303,43330.0,43320.0,0.360482]
[1646282990697,0.00014931,43325.0,43320.0,0.360482]
[1646282991398,0.30621337,43329.0,43328.0,0.17880725]
[1646282992299,0.25,43335.0,43328.0,0.17880725]
[1646282992499,0.02303,43333.0,43328.0,0.17880725]
[1646282993300,0.02303,43331.0,43328.0,0.17880725]
[1646282993900,0.1462,43334.0,43328.0,0.17880725]
[1646282993901,0.02303,43333.0,43328.0,0.17880725]
[1646282994343,0.0001577,43332.0,43328.0,0.17880725]
[1646282994942,0.0001577,43332.0,43330.0,0.356482]
[1646282995143,0.0001577,43332.0,43328.0,0.17880725]
[1646282995144,0.03456,43338.0,43328.0,0.17880725]
[1646282995344,0.02303,43338.0,43328.0,0.17880725]
[1646282995547,0.25741914,43331.0,43328.0,0.17880725]
[1646282995748,0.25741914,43331.0,43322.0,0.1181]
[1646282995945,0.25741914,43331.0,43323.0,0.356482]
[1646282996143,0.28044914,43331.0,43323.0,0.356482]
[1646282996744,0.0001577,43329.0,43324.0,0.17801619]
[1646282996944,0.0001577,43329.0,43325.0,0.356482]
[1646282997543,0.28044914,43331.0,43325.0,0.356482]
[1646282997987,0.0001577,43329.0,43325.0,0.356482]
[1646282998883,0.28044914,43331.0,43324.0,0.17801619]
[1646282999084,0.00015312,43329.0,43325.0,0.356482]
[1646282999284,0.00015312,43329.0,43324.0,0.17801619]
[1646282999706,0.00015312,43329.0,43328.0,0.001]
[1646283000183,0.00215312,43329.0,43328.0,0.001]
[1646283000984,0.00215312,43329.0,43319.0,0.2529]
[1646283001185,0.28044914,43331.0,43320.0,0.356482]
[1646283001387,0.28060226,43331.0,43320.0,0.356482]
[1646283001837,0.18439681,43327.0,43319.0,0.2499]
[1646283002037,0.18439681,43327.0,43320.0,0.356482]
[1646283002638,0.00014894,43327.0,43320.0,0.356482]
[1646283003540,0.28044914,43331.0,43320.0,0.356482]
[1646283003740,0.02303,43329.0,43320.0,0.356482]
[1646283003942,0.00014894,43327.0,43320.0,0.360482]
[1646283004544,0.00014894,43327.0,43321.0,0.3]
[1646283004745,0.16236625,43330.0,43322.0,0.356482]
[1646283005145,0.00014894,43327.0,43322.0,0.356482]
[1646283005982,0.16236625,43330.0,43322.0,0.360482]
[1646283006186,0.00014937,43327.0,43322.0,0.004]
[1646283006384,0.00014937,43327.0,43323.0,0.356482]
[1646283006581,0.00014937,43327.0,43324.0,0.3]
[1646283006783,0.00014937,43327.0,43325.0,0.356482]
[1646283006986,0.00014937,43327.0,43326.0,0.3]
[1646283007183,0.02303,43333.0,43322.0,0.004]
[1646283007382,0.00014937,43328.0,43321.0,0.3]
[1646283007584,0.00014937,43328.0,43325.0,0.20359719]
[1646283007785,0.00014937,43328.0,43326.0,0.656482]
[1646283007983,0.00014937,43328.0,43325.0,0.20359719]
[1646283008183,0.00014937,43328.0,43326.0,0.356482]
[1646283008384,0.25145442,43333.0,43325.0,0.20359719]
[1646283008587,0.00014937,43329.0,43326.0,0.3]
[1646283008785,0.00014937,43329.0,43325.0,0.20359719]
[1646283008984,0.00014937,43329.0,43326.0,0.3]
[1646283009734,0.16649487,43334.0,43326.0,0.3]
[1646283009935,0.00014927,43330.0,43326.0,0.3]
[1646283010137,0.27466791,43328.0,43326.0,0.004]
[1646283011139,0.27466791,43328.0,43321.0,0.3]
[1646283011336,0.27466791,43328.0,43322.0,0.356482]
[1646283012139,0.27466791,43328.0,43322.0,0.360482]
[1646283012338,0.00014927,43327.0,43322.0,0.360482]
[1646283012737,0.18024061,43327.0,43322.0,0.360482]
[1646283013183,0.18009134,43327.0,43322.0,0.356482]
[1646283013385,0.18024063,43327.0,43322.0,0.356482]
[1646283013985,0.18024063,43327.0,43322.0,0.360482]
[1646283014388,0.192976,43336.0,43322.0,0.360482]
[1646283014587,0.00014929,43327.0,43322.0,0.004]
[1646283014786,0.00014929,43327.0,43323.0,0.356482]
[1646283015087,0.00014929,43327.0,43324.0,0.29990923]
[1646283015286,0.00014929,43327.0,43321.0,0.3]
[1646283015487,0.00014929,43327.0,43326.0,0.21271814]
[1646283015687,0.29191288,43336.0,43326.0,0.21271814]
[1646283015688,0.19191288,43336.0,43326.0,0.51271814]
[1646283015888,0.00014929,43327.0,43326.0,0.51271814]
[1646283016741,0.19191288,43336.0,43326.0,0.51271814]
[1646283017137,0.00014929,43329.0,43326.0,0.51271814]
[1646283017339,0.00014929,43329.0,43327.0,0.3]
[1646283017738,0.00014929,43329.0,43328.0,0.356482]
[1646283017938,0.19191288,43336.0,43328.0,0.3]
[1646283018339,0.00014929,43330.0,43328.0,0.3]
[1646283018538,0.00014929,43330.0,43327.0,0.656482]
[1646283018737,0.00014929,43330.0,43327.0,0.3]
[1646283018942,0.00014929,43330.0,43328.0,0.356482]
[1646283019138,0.19191288,43336.0,43326.0,0.21271814]
[1646283019139,0.19191288,43336.0,43329.0,0.3]
[1646283019739,0.00014928,43331.0,43329.0,0.3]
[1646283019941,0.00014928,43331.0,43327.0,0.656482]
[1646283020343,0.26953624,43332.0,43327.0,0.3]
[1646283020594,0.00014929,43331.0,43327.0,0.3]
[1646283020791,0.00014929,43331.0,43327.0,0.356482]
[1646283020992,0.00014929,43331.0,43327.0,0.3]
[1646283021194,0.00014929,43331.0,43327.0,0.356482]
[1646283021393,0.00014929,43331.0,43327.0,0.3]
[1646283021596,0.19191288,43336.0,43327.0,0.3]
[1646283021794,0.00014929,43331.0,43327.0,0.3]
[1646283022196,0.00014929,43331.0,43328.0,0.356482]
[1646283022396,0.00014929,43331.0,43327.0,0.3]
[1646283022795,0.24964888,43336.0,43328.0,0.356482]
[1646283022996,0.00014929,43331.0,43327.0,0.3]
[1646283023196,0.00014929,43331.0,43328.0,0.356482]
[1646283023998,0.19191288,43336.0,43330.0,0.19504123]
[1646283024260,0.00013437,43332.0,43327.0,0.3]
[1646283024462,0.00013437,43332.0,43328.0,0.356482]
[1646283024857,0.00013437,43332.0,43329.0,0.356482]
[1646283025057,0.00013437,43332.0,43328.0,0.356482]
[1646283025260,0.19191288,43336.0,43330.0,0.17122644]
[1646283025460,0.00013437,43333.0,43330.0,0.17122644]
[1646283025661,0.00013437,43333.0,43331.0,0.356482]
[1646283025864,0.00013437,43333.0,43330.0,0.17122644]
[1646283026063,0.00013437,43333.0,43330.0,0.17422644]
[1646283026262,0.00013437,43333.0,43331.0,0.656482]
[1646283026464,0.05,43339.0,43333.0,0.356482]
[1646283026662,0.00013437,43334.0,43333.0,0.447652]
[1646283026867,0.00013437,43334.0,43333.0,0.60866567]
[1646283027062,0.00013437,43334.0,43333.0,0.90866567]
[1646283027661,0.25567291,43346.0,43341.0,0.20489076]
[1646283028091,0.25567291,43346.0,43336.0,0.3]
[1646283028892,0.25567291,43346.0,43337.0,0.356482]
[1646283029092,0.00013536,43343.0,43337.0,0.356482]
[1646283029295,0.00013536,43343.0,43337.0,0.55431516]
[1646283030104,0.001,43346.0,43337.0,0.55631516]
[1646283030293,0.00013536,43342.0,43337.0,0.55631516]
[1646283031291,0.001,43346.0,43337.0,0.55431516]
[1646283031493,0.00013536,43342.0,43337.0,0.55431516]
[1646283031945,0.00013536,43342.0,43337.0,0.55731516]
[1646283032347,0.20259861,43344.0,43337.0,0.359482]
[1646283032747,0.00013528,43342.0,43337.0,0.359482]
[1646283033349,0.00013528,43342.0,43337.0,0.356482]
[1646283033548,0.273312,43343.0,43337.0,0.356482]
[1646283033750,0.20259861,43344.0,43337.0,0.356482]
[1646283033751,0.00013528,43342.0,43337.0,0.356482]
[1646283034250,0.00013528,43342.0,43337.0,0.359482]
[1646283034854,0.20259861,43344.0,43337.0,0.359482]
[1646283035053,0.00013528,43342.0,43337.0,0.359482]
[1646283035252,0.00013528,43342.0,43337.0,0.356482]
[1646283036002,0.20259861,43344.0,43337.0,0.359482]
[1646283036202,0.00013529,43342.0,43337.0,0.359482]
[1646283037205,0.20259861,43344.0,43337.0,0.356482]
[1646283037402,0.00013529,43342.0,43337.0,0.356482]
[1646283038002,0.00013529,43342.0,43337.0,0.359482]
[1646283038403,0.001,43346.0,43337.0,0.359482]
[1646283038604,0.00013529,43342.0,43337.0,0.359482]
[1646283039245,0.00013529,43342.0,43337.0,0.356482]
[1646283039645,0.001,43346.0,43337.0,0.356482]
[1646283039848,0.00013529,43342.0,43337.0,0.356482]
[1646283040846,0.001,43346.0,43337.0,0.356482]
[1646283041047,0.00013529,43342.0,43337.0,0.356482]
[1646283041946,0.2161935,43342.0,43337.0,0.356482]
[1646283042350,0.21632879,43342.0,43337.0,0.356482]
[1646283043302,0.2161935,43342.0,43337.0,0.356482]
[1646283043507,0.21632879,43342.0,43337.0,0.356482]
[1646283044105,0.21632879,43342.0,43338.0,0.00399974]
[1646283044305,0.21632879,43342.0,43339.0,0.356482]
[1646283044506,0.2161935,43342.0,43339.0,0.356482]
[1646283044705,0.21632878,43342.0,43339.0,0.356482]
[1646283045707,0.2161935,43342.0,43340.0,0.3]
[1646283045909,0.00013528,43343.0,43341.0,0.356482]
[1646283046108,0.00013528,43343.0,43342.0,0.3]
[1646283046308,0.00013528,43343.0,43342.0,0.356482]
[1646283046744,0.001,43346.0,43342.0,0.356482]
[1646283047044,0.00013528,43345.0,43340.0,0.356482]
[1646283047244,0.00013528,43345.0,43341.0,0.3]
[1646283047645,0.00013528,43345.0,43338.0,0.00399974]
[1646283047844,0.00013528,43345.0,43339.0,0.356482]
[1646283048045,0.21115275,43346.0,43341.0,0.002]
[1646283048245,0.00013528,43344.0,43341.0,0.002]
[1646283048645,0.00013528,43344.0,43342.0,0.356482]
[1646283048845,0.00013528,43344.0,43341.0,0.002]
[1646283049046,0.00013528,43344.0,43341.0,0.00598871]
[1646283049247,0.21115275,43346.0,43341.0,0.00398871]
[1646283049449,0.00013528,43345.0,43341.0,0.00398871]
[1646283050151,0.00313528,43345.0,43341.0,0.00398871]
[1646283050353,0.003,43345.0,43341.0,0.00398871]
[1646283050910,0.00313528,43345.0,43341.0,0.00398871]
[1646283051308,0.00013528,43345.0,43341.0,0.00398871]
[1646283051707,0.21115275,43346.0,43341.0,0.00398871]
[1646283051910,0.00013528,43345.0,43341.0,0.00398871]
[1646283052108,0.00313528,43345.0,43341.0,0.00398871]
[1646283052910,0.00313528,43345.0,43341.0,0.00387513]
[1646283052911,0.02303,43343.0,43341.0,0.00387513]
[1646283053108,0.0783,43342.0,43341.0,0.00387513]
[1646283053709,0.55559547,43342.0,43341.0,0.00387513]
[1646283053908,0.55559547,43342.0,43340.0,0.0039777]
[1646283054108,0.01153,43341.0,43340.0,0.0039777]
[1646283054358,0.12220015,43341.0,43340.0,0.0039777]
[1646283054759,0.48796562,43341.0,43340.0,0.0039777]
[1646283055160,0.58796562,43341.0,43340.0,0.0039777]
[1646283056163,0.59096562,43341.0,43340.0,0.0039777]
[1646283057162,0.22520015,43341.0,43340.0,0.0039777]
[1646283057362,0.12220015,43341.0,43340.0,0.0039777]
[1646283057562,0.22220015,43341.0,43340.0,0.0039777]
[1646283058022,0.22520015,43341.0,43340.0,0.0039777]
[1646283058723,0.12520015,43341.0,43340.0,0.00107076]
[1646283058927,0.11367015,43341.0,43340.0,0.00107076]
[1646283059422,0.12220015,43341.0,43340.0,0.00107076]
[1646283060429,0.11067015,43341.0,43340.0,0.00107076]
[1646283060627,0.0783,43341.0,43340.0,0.00107076]
[1646283066394,0.05527,43341.0,43340.0,0.00107076]
[1646283066597,0.00907,43341.0,43340.0,0.00107076]
[1646283069946,0.132,43341.0,43340.0,0.00107076]
[1646283070346,0.1321,43341.0,43340.0,0.00107076]
[1646283070547,0.1361,43341.0,43340.0,0.00107076]
[1646283070749,0.11307,43341.0,43340.0,0.00107076]
[1646283071148,0.1361,43341.0,43340.0,0.00107076]
[1646283071346,0.0361,43341.0,43340.0,0.00107076]
[1646283071848,0.0321,43341.0,43340.0,0.00107076]
[1646283072450,0.0351,43341.0,43340.0,0.00107076]
[1646283073697,0.00907,43341.0,43340.0,0.00107076]
[1646283073892,0.00907,43341.0,43340.0,0.00371464]
[1646283075093,0.00907,43341.0,43340.0,0.00361526]
[1646283076497,0.01207,43341.0,43340.0,0.00361526]
[1646283077762,0.00907,43341.0,43340.0,0.00361526]
[1646283078463,0.01207,43341.0,43340.0,0.00361526]
[1646283079463,0.0813,43341.0,43340.0,0.00361526]
[1646283079662,0.0813,43341.0,43340.0,0.00264526]
[1646283079861,0.0783,43341.0,43340.0,0.00264526]
[1646283080263,0.1783,43341.0,43340.0,0.00264526]
[1646283080505,0.1813,43341.0,43340.0,0.00264526]
[1646283081011,0.18120957,43341.0,43340.0,0.00264526]
[1646283081406,0.08120957,43341.0,43340.0,0.00264526]
[1646283081807,0.37820957,43341.0,43340.0,0.00264526]
[1646283082110,0.37820957,43341.0,43324.0,0.01153]
[1646283082111,0.00216715,43338.0,43324.0,0.01153]
[1646283082410,0.00216715,43338.0,43315.0,0.55098966]
[1646283082411,0.205292,43331.0,43315.0,0.55098966]
[1646283082610,0.0462,43330.0,43315.0,0.53945966]
[1646283082807,0.008987,43329.0,43315.0,0.53945966]
[1646283083009,0.025,43333.0,43323.0,0.656434]
[1646283083208,0.2132,43337.0,43323.0,0.656434]
[1646283083209,0.00013525,43329.0,43324.0,0.356434]
[1646283083408,0.00013525,43329.0,43325.0,0.18383179]
[1646283083610,0.00013525,43329.0,43326.0,0.3]
[1646283083808,0.00013525,43329.0,43326.0,0.3462]
[1646283084011,0.00216715,43338.0,43327.0,0.53798434]
[1646283084265,0.00216715,43338.0,43329.0,0.356434]
[1646283084469,0.00216715,43338.0,43331.0,0.356434]
[1646283084864,0.00216715,43338.0,43336.0,0.17467413]
[1646283085364,0.00216715,43338.0,43336.0,0.47467413]
[1646283085565,0.00216715,43338.0,43336.0,0.17467413]
[1646283085763,0.00216715,43338.0,43337.0,0.3]
[1646283085963,0.00216715,43338.0,43336.0,0.17467413]
[1646283086367,0.00216715,43338.0,43337.0,0.3]
[1646283086567,0.00216715,43338.0,43336.0,0.17467413]
[1646283086970,0.00216715,43338.0,43337.0,0.3]
[1646283087369,0.00216715,43338.0,43331.0,0.3]
[1646283087772,0.00216715,43338.0,43332.0,0.402634]
[1646283088514,0.00216715,43338.0,43332.0,0.407634]
[1646283088911,0.00216715,43338.0,43337.0,0.76755935]
[1646283089113,0.00216715,43338.0,43337.0,1.1751892]
[1646283089313,0.00315369,43338.0,43337.0,1.1751892]
[1646283090114,0.00315369,43338.0,43337.0,0.8187552]
[1646283090317,0.00315369,43338.0,43337.0,1.1751892]
[1646283091746,0.00315369,43338.0,43337.0,0.8187552]
[1646283092150,0.00315369,43338.0,43337.0,1.1751892]
[1646283092348,0.00098654,43338.0,43337.0,1.1751892]
[1646283092650,0.00098654,43338.0,43337.0,0.8187552]
[1646283092848,0.00098654,43338.0,43337.0,1.1751892]
[1646283093048,0.00098654,43338.0,43337.0,0.8187552]
[1646283093649,0.00098654,43338.0,43337.0,1.1751892]
[1646283094049,0.00098654,43338.0,43337.0,0.8187552]
[1646283094251,0.00134148,43338.0,43337.0,0.82108795]
[1646283094452,0.00134148,43338.0,43337.0,1.17752195]
[1646283094652,0.00134148,43338.0,43337.0,0.80108795]
[1646283094853,0.00134148,43338.0,43337.0,1.15752195]
[1646283095054,0.00134148,43338.0,43337.0,0.80108795]
[1646283095505,0.00134148,43338.0,43337.0,1.15752195]
[1646283095706,0.00134148,43338.0,43337.0,0.80108795]
[1646283095906,0.00134148,43338.0,43337.0,1.15752195]
[1646283096315,0.00134148,43338.0,43337.0,0.96939962]
[1646283096316,4.148e-05,43338.0,43337.0,0.96939962]
[1646283096513,4.148e-05,43338.0,43337.0,0.96138697]
[1646283097308,4.148e-05,43338.0,43337.0,0.6613706]
[1646283097509,4.148e-05,43338.0,43337.0,0.80223483]
[1646283098509,4.148e-05,43338.0,43337.0,0.98046587]
[1646283098713,4.148e-05,43338.0,43337.0,1.68266587]
[1646283099375,0.0012941,43338.0,43337.0,1.6846957]
[1646283100574,0.0012941,43338.0,43337.0,1.6906957]
[1646283101679,0.001,43346.0,43338.0,2.031664]
[1646283101876,0.001,43346.0,43341.0,0.782928]
[1646283102076,0.001,43346.0,43342.0,0.725664]
[1646283102275,0.001,43346.0,43342.0,1.427864]
[1646283102474,0.001,43346.0,43345.0,0.10762985]
[1646283102677,0.001,43346.0,43345.0,1.53549385]
[1646283103609,0.001,43346.0,43345.0,1.52243537]
[1646283104715,0.00015778,43348.0,43346.0,2.031664]
[1646283105015,0.00015778,43348.0,43347.0,2.11259385]
[1646283105016,7.78e-06,43348.0,43347.0,2.11259385]
[1646283105212,7.78e-06,43348.0,43347.0,2.21259385]
[1646283105615,0.05,43359.0,43347.0,2.19951247]
[1646283105814,0.001,43363.0,43356.0,0.72523]
[1646283106014,0.001,43363.0,43359.0,0.09456265]
[1646283106216,0.001,43363.0,43359.0,0.79719665]
[1646283107457,0.001,43363.0,43359.0,0.73683865]
[1646283107858,0.001,43363.0,43359.0,0.49719665]
[1646283108658,0.001,43363.0,43359.0,0.50119665]
[1646283109659,0.00015777,43362.0,43359.0,0.50119665]
[1646283109860,0.00015777,43362.0,43359.0,0.49719665]
[1646283110261,0.02253,43369.0,43361.0,0.356434]
[1646283110510,0.011,43369.0,43361.0,0.356434]
[1646283111312,0.18713117,43369.0,43361.0,0.356434]
[1646283111713,0.18713117,43369.0,43361.0,0.54146197]
[1646283112016,0.18713117,43369.0,43361.0,0.356434]
[1646283112017,0.24482204,43369.0,43361.0,0.356434]
[1646283112218,0.057693,43367.0,43361.0,0.356434]
[1646283112516,0.057693,43367.0,43359.0,0.0462]
[1646283112714,0.057693,43367.0,43360.0,0.356434]
[1646283113915,0.057693,43367.0,43362.0,0.00279205]
[1646283114116,0.24482204,43369.0,43363.0,0.356434]
[1646283114362,0.00015777,43366.0,43363.0,0.356434]
[1646283115359,0.24482204,43369.0,43363.0,0.356434]
[1646283115561,0.00015776,43367.0,43363.0,0.356434]
[1646283115765,0.05784976,43367.0,43363.0,0.356434]
[1646283117763,0.057692,43367.0,43363.0,0.356434]
[1646283118039,0.00015776,43367.0,43363.0,0.356434]
[1646283118242,0.00015776,43367.0,43363.0,0.656434]
[1646283118638,0.00015776,43367.0,43365.0,0.00117922]
[1646283118838,0.18713117,43369.0,43366.0,0.356434]
[1646283119038,0.18713117,43369.0,43365.0,0.00117922]
[1646283119240,0.00015314,43367.0,43366.0,0.356434]
[1646283119840,0.00015314,43367.0,43365.0,0.00117922]
[1646283120041,0.057691,43368.0,43365.0,0.00117922]
[1646283121860,0.18728431,43369.0,43366.0,0.356434]
[1646283122458,0.18713117,43369.0,43366.0,0.356434]
[1646283123057,0.18713117,43369.0,43365.0,0.00117922]
[1646283123859,0.18728009,43369.0,43366.0,0.00279]
[1646283124863,0.18713117,43369.0,43366.0,0.00279]
[1646283127104,0.011,43369.0,43366.0,0.00279]
[1646283128805,0.011,43369.0,43367.0,0.356434]
[1646283129006,0.011,43369.0,43368.0,0.00118587]
[1646283132675,0.011,43369.0,43368.0,0.35761987]
[1646283133122,0.011,43369.0,43368.0,0.00118587]
[1646283133322,0.011,43369.0,43368.0,0.35761987]
[1646283133725,0.011,43369.0,43368.0,0.00118587]
[1646283134326,0.019987,43369.0,43368.0,0.00118587]
[1646283134524,0.019987,43369.0,43368.0,0.00108164]
[1646283134724,0.019987,43369.0,43354.0,0.01152]
[1646283134725,0.08603568,43368.0,43354.0,0.01152]
[1646283134925,0.08603568,43368.0,43353.0,0.1886]
[1646283134926,0.02303,43364.0,43356.0,0.16204]
[1646283135123,0.02303,43364.0,43353.0,0.1886]
[1646283135326,0.13844166,43364.0,43353.0,0.1886]
[1646283135524,0.13844166,43364.0,43356.0,0.003]
[1646283135723,0.008987,43363.0,43356.0,0.003]
[1646283135924,0.21720038,43357.0,43356.0,0.003]
[1646283136127,0.36585738,43357.0,43356.0,0.003]
[1646283136326,0.38888738,43357.0,43356.0,0.003]
[1646283136526,0.48388738,43357.0,43356.0,0.003]
[1646283136771,0.53263038,43357.0,43341.0,0.3]
[1646283136968,0.16554389,43348.0,43341.0,0.3]
[1646283137172,0.057721,43346.0,43339.0,0.296]
[1646283137366,0.057721,43346.0,43339.0,0.1818]
[1646283137766,0.057721,43346.0,43338.0,0.00050339]
[1646283137971,0.080751,43346.0,43338.0,0.00050339]
[1646283138267,0.080751,43346.0,43336.0,0.002]
[1646283138468,0.080751,43346.0,43337.0,0.356434]
[1646283138667,0.05772565,43345.0,43337.0,0.356434]
[1646283138869,0.02303,43346.0,43336.0,0.3]
[1646283139069,0.02303,43346.0,43338.0,0.356434]
[1646283139270,0.02303,43346.0,43339.0,0.3]
[1646283139469,0.23813874,43346.0,43337.0,0.356434]
[1646283139670,0.21510874,43346.0,43342.0,0.2033372]
[1646283139870,0.16554389,43348.0,43337.0,0.356434]
[1646283140901,0.26224015,43346.0,43336.0,0.3]
[1646283141102,0.26224015,43346.0,43337.0,0.356434]
[1646283141307,0.16554389,43348.0,43337.0,0.356434]
[1646283141704,0.01153,43350.0,43342.0,0.17143462]
[1646283141905,0.01153,43350.0,43343.0,0.3]
[1646283142104,0.01153,43351.0,43343.0,0.3]
[1646283142305,0.01153,43351.0,43349.0,0.16489909]
[1646283142504,0.24798584,43355.0,43343.0,0.3]
[1646283142705,0.0462,43356.0,43350.0,0.19319017]
[1646283142910,0.20332759,43360.0,43351.0,0.656434]
[1646283143505,0.20332759,43360.0,43351.0,0.303]
[1646283143705,0.25085905,43354.0,43351.0,0.303]
[1646283143905,0.25085905,43354.0,43352.0,0.356434]
[1646283144559,0.25085905,43354.0,43351.0,0.003]
[1646283144763,0.25085905,43354.0,43346.0,0.3]
[1646283144961,0.18843067,43352.0,43344.0,0.356434]
[1646283145162,0.18843067,43352.0,43346.0,0.356434]
[1646283145965,0.18843067,43352.0,43348.0,0.21819174]
[1646283146162,0.18464749,43360.0,43349.0,0.656434]
[1646283146364,0.05770249,43360.0,43349.0,0.3]
[1646283146764,0.08073249,43360.0,43349.0,0.3]
[1646283147165,0.08073249,43360.0,43351.0,0.16488144]
[1646283147166,0.2382207,43360.0,43351.0,0.16488144]
[1646283147464,0.27071099,43357.0,43351.0,0.16488144]
[1646283147864,0.2382207,43360.0,43351.0,0.16488144]
[1646283148907,0.26589664,43359.0,43352.0,0.3]
[1646283149107,0.057703,43361.0,43352.0,0.3]
[1646283149310,0.01153,43363.0,43352.0,0.3]
[1646283149512,0.00014926,43364.0,43353.0,0.356434]
[1646283150110,0.24189393,43366.0,43360.0,0.19349629]
[1646283150309,0.24189393,43366.0,43361.0,0.3]
[1646283150510,0.00014927,43364.0,43360.0,0.19349629]
[1646283150914,0.00014927,43364.0,43362.0,0.356434]
[1646283151112,0.00014927,43364.0,43363.0,0.3]
[1646283151309,0.16702239,43369.0,43363.0,0.656434]
[1646283151509,0.17202239,43369.0,43363.0,0.3]
[1646283151773,0.00014928,43365.0,43363.0,0.3]
[1646283151974,0.00014928,43365.0,43360.0,0.19349629]
[1646283152175,0.00014928,43365.0,43361.0,0.356434]
[1646283152375,0.00014928,43365.0,43356.0,0.3]
[1646283152575,0.05769167,43368.0,43357.0,0.356434]
[1646283152775,0.00014928,43365.0,43357.0,0.356434]
[1646283153378,0.00014928,43365.0,43359.0,0.16940338]
[1646283153577,0.00014928,43365.0,43360.0,0.656434]
[1646283153775,0.05769167,43368.0,43360.0,0.656434]
[1646283153975,0.00014928,43364.0,43360.0,0.3]
[1646283154175,0.00014928,43364.0,43361.0,0.356434]
[1646283154575,0.00171839,43363.0,43362.0,0.00144947]
[1646283154777,0.00171839,43363.0,43362.0,0.35788347]
[1646283155177,0.00171839,43363.0,43362.0,0.65788347]
[1646283155621,0.00171839,43363.0,43362.0,0.66088347]
[1646283156824,0.00171839,43363.0,43362.0,0.65788347]
[1646283158830,0.00186767,43365.0,43362.0,0.30313906]
[1646283159271,0.00186767,43365.0,43362.0,0.00313906]
[1646283159468,0.05956167,43365.0,43362.0,0.00313906]
[1646283159667,0.05941239,43365.0,43362.0,0.00313906]
[1646283160669,0.008987,43364.0,43362.0,0.00313906]
[1646283160870,0.08244239,43365.0,43362.0,0.00313906]
[1646283161169,0.05941239,43365.0,43362.0,0.00304711]
[1646283162269,0.00171839,43365.0,43362.0,0.00304711]
[1646283164509,0.057698,43364.0,43363.0,0.00144828]
[1646283164708,0.00171839,43365.0,43363.0,0.00144828]
[1646283165509,0.00571839,43365.0,43363.0,0.00144828]
[1646283166787,0.00171839,43365.0,43363.0,0.00144828]
[1646283167586,0.06441639,43365.0,43363.0,0.00144828]
[1646283167988,0.00671839,43365.0,43363.0,0.00144828]
[1646283168792,0.00171839,43365.0,43363.0,0.00144828]
[1646283169394,0.00171839,43365.0,43364.0,0.00310931]
[1646283169591,0.00671839,43365.0,43364.0,0.00310931]
[1646283170609,0.06441639,43365.0,43364.0,0.00310931]
[1646283171410,0.05941639,43365.0,43364.0,0.00310931]
[1646283171611,0.06441639,43365.0,43364.0,0.00310931]